fUSD/lending_fUSD_20260622
["ID","MTS","AMOUNT","RATE_DAILY","PERIOD"]
[426019942,1782119443000,-533.76605895,0.0002271,2]
[426019946,1782119443000,-200.0,0.00022825,2]
[426019945,1782119443000,-201.93286098,0.00022825,2]
[426019956,1782119443000,-157.02393511,0.00023,2]
[426019948,1782119443000,-745.05719979,0.00022825,2]
[426019951,1782119443000,-200.0,0.00022897,2]
[426019953,1782119443000,-490.0,0.00023,2]
[426019955,1782119443000,-339.0,0.00023,2]
[426019949,1782119443000,-151.0,0.00022825,2]
[426019950,1782119443000,-233.5188934,0.00022825,2]
[426019952,1782119443000,-380.06321745,0.00022903,2]
[426019954,1782119443000,-663.0,0.00023,2]
[426019957,1782119443000,-582.0,0.00023,2]
[426019959,1782119443000,-1779.0,0.00023,2]
[426019958,1782119443000,-304.0,0.00023,2]
[426019906,1782119443000,-150.0,0.00022,2]
[426019935,1782119443000,-383.0,0.00022468,2]
[426019939,1782119443000,-36205.09698188,0.000225,2]
[426019947,1782119443000,-151.0,0.00022825,2]
[426019941,1782119443000,-151.0,0.00022551,2]
[426019916,1782119443000,-151.0,0.00022277,2]
[426019936,1782119443000,-1360.0,0.00022468,2]
[426019913,1782119443000,-322.37792121,0.00022277,2]
[426019914,1782119443000,-151.0,0.00022277,2]
[426019915,1782119443000,-194.72792766,0.00022277,2]
[426019912,1782119443000,-200.0,0.0002214,2]
[426019919,1782119443000,-745.05719979,0.00022277,2]
[426019921,1782119443000,-332.0,0.00022353,2]
[426019920,1782119443000,-225.18697532,0.00022277,2]
[426019917,1782119443000,-200.0,0.00022277,2]
[426019923,1782119443000,-1461.53214243,0.00022407,2]
[426019918,1782119443000,-151.0,0.00022277,2]
[426019922,1782119443000,-150.0,0.00022404,2]
[426019925,1782119443000,-1461.53214241,0.00022407,2]
[426019924,1782119443000,-1461.53214241,0.00022407,2]
[426019926,1782119443000,-151.0,0.00022465,2]
[426019929,1782119443000,-1012.41,0.00022466,2]
[426019930,1782119443000,-150.0,0.00022468,2]
[426019927,1782119443000,-1320.67,0.00022466,2]
[426019931,1782119443000,-150.0,0.00022468,2]
[426019928,1782119443000,-1723.43,0.00022466,2]
[426019932,1782119443000,-150.0,0.00022468,2]
[426019933,1782119443000,-3559.0,0.00022468,2]
[426020003,1782119444000,-11203.09467203,0.00024,2]
[426020001,1782119444000,-150888.80083963,0.00024,2]
[426020002,1782119444000,-1261.27451767,0.00024,2]
[426019999,1782119444000,-3600.0,0.00024,2]
[426019995,1782119444000,-300.0,0.00023999,2]
[426019991,1782119444000,-151.0,0.00023921,2]
[426019983,1782119444000,-310.0,0.000237,2]
[426019992,1782119444000,-745.05719979,0.00023921,2]
[426019987,1782119444000,-322.37792121,0.00023921,2]
[426019997,1782119444000,-500.0,0.00024,2]
[426019996,1782119444000,-672.63697964,0.00023999,2]
[426019998,1782119444000,-1042.99876031,0.00024,2]
[426020010,1782119444000,-173.44,0.00024112,2]
[426020004,1782119444000,-663.0,0.00024,2]
[426020005,1782119444000,-339.0,0.00024,2]
[426020007,1782119444000,-304.0,0.00024,2]
[426020006,1782119444000,-582.0,0.00024,2]
[426020012,1782119444000,-1719.34,0.00024174,2]
[426020008,1782119444000,-225.664423,0.00024,7]
[426020014,1782119444000,-2696.35,0.00024174,2]
[426020009,1782119444000,-285.0,0.00024065,2]
[426020011,1782119444000,-1728.9913975,0.00024118,7]
[426020013,1782119444000,-28490.04,0.00024174,2]
[426020016,1782119444000,-10835.64216132,0.0002429,7]
[426019993,1782119444000,-251.11897888,0.00023921,2]
[426020000,1782119444000,-490.0,0.00024,2]
[426019994,1782119444000,-195.57145326,0.00023921,2]
[426019961,1782119444000,-151.0,0.00023099,2]
[426019988,1782119444000,-151.0,0.00023921,2]
[426020015,1782119444000,-3774.65181799,0.0002421,2]
[426019970,1782119444000,-209.40437684,0.00023373,2]
[426019962,1782119444000,-448.38696378,0.000232,2]
[426019966,1782119444000,-721.12765534,0.00023372,2]
[426019964,1782119444000,-2000.0,0.00023333,7]
[426019967,1782119444000,-322.37792121,0.00023373,2]
[426019963,1782119444000,-190.98196405,0.0002326,21]
[426019960,1782119444000,-206.0,0.00023009,2]
[426019965,1782119444000,-599.60298507,0.00023372,2]
[426019969,1782119444000,-151.0,0.00023373,2]
[426019972,1782119444000,-151.0,0.00023373,2]
[426019971,1782119444000,-200.0,0.00023373,2]
[426019989,1782119444000,-217.15233878,0.00023921,2]
[426019974,1782119444000,-151.0,0.00023373,2]
[426019977,1782119444000,-577.19,0.000235,7]
[426019981,1782119444000,-150.0,0.00023667,2]
[426019975,1782119444000,-242.15909246,0.00023373,2]
[426019978,1782119444000,-226.97211214,0.00023561,7]
[426019976,1782119444000,-1765.77335329,0.000235,2]
[426019979,1782119444000,-151.0,0.00023647,2]
[426019980,1782119444000,-200.0,0.00023654,2]
[426019986,1782119444000,-282.87073548,0.00023898,2]
[426019982,1782119444000,-316.0,0.000237,2]
[426019984,1782119444000,-500.0,0.00023898,2]
[426019985,1782119444000,-500.0,0.00023898,2]
[426019990,1782119444000,-200.0,0.00023921,2]
[426019973,1782119444000,-745.05719979,0.00023373,2]
[426020018,1782119444000,-200.0,0.0002441,2]
[426020040,1782119444000,-500.0,0.00024658,2]
[426020019,1782119444000,-653.57150844,0.00024434,2]
[426020042,1782119444000,-500.0,0.00024658,2]
[426020062,1782119444000,-251.45,0.00025,2]
[426020060,1782119444000,-251.45,0.00025,2]
[426020052,1782119444000,-667.70008222,0.00025,2]
[426020061,1782119444000,-251.45,0.00025,2]
[426020058,1782119444000,-306.51646338,0.00025,2]
[426020059,1782119444000,-577.19,0.00025,7]
[426020051,1782119444000,-50000.0,0.00025,10]
[426020053,1782119444000,-60294.26158838,0.00025,7]
[426020054,1782119444000,-630.61457372,0.00025,5]
[426020056,1782119444000,-267.9,0.00025,2]
[426020057,1782119444000,-594.73097188,0.00025,2]
[426020055,1782119444000,-345.88882288,0.00025,2]
[426020063,1782119444000,-251.45,0.00025,2]
[426020067,1782119444000,-251.45,0.00025,2]
[426020066,1782119444000,-251.45,0.00025,2]
[426020065,1782119444000,-251.45,0.00025,2]
[426020073,1782119444000,-200.0,0.00025017,2]
[426020064,1782119444000,-251.45,0.00025,2]
[426020068,1782119444000,-251.45,0.00025,2]
[426020070,1782119444000,-208.0,0.00025014,2]
[426020069,1782119444000,-251.45,0.00025,2]
[426020071,1782119444000,-322.37792121,0.00025017,2]
[426020072,1782119444000,-233.5188934,0.00025017,2]
[426020075,1782119444000,-745.05719979,0.00025017,2]
[426020047,1782119444000,-150.0,0.0002485,2]
[426020049,1782119444000,-3648.0,0.00024903,2]
[426020020,1782119444000,-322.37792121,0.00024469,2]
[426020050,1782119444000,-491.40783886,0.00025,2]
[426020017,1782119444000,-332.0,0.00024324,2]
[426020021,1782119444000,-151.0,0.00024469,2]
[426020023,1782119444000,-200.0,0.00024469,2]
[426020022,1782119444000,-225.18697532,0.00024469,2]
[426020026,1782119444000,-260.4103811,0.00024469,2]
[426020027,1782119444000,-937.45,0.0002464,7]
[426020024,1782119444000,-151.0,0.00024469,2]
[426020044,1782119444000,-500.0,0.00024658,2]
[426020028,1782119444000,-151.0,0.00024658,2]
[426020031,1782119444000,-151.0,0.00024658,2]
[426020035,1782119444000,-500.0,0.00024658,2]
[426020030,1782119444000,-151.0,0.00024658,2]
[426020033,1782119444000,-500.0,0.00024658,2]
[426020025,1782119444000,-745.05719979,0.00024469,2]
[426020029,1782119444000,-1000.0,0.00024658,2]
[426020036,1782119444000,-500.0,0.00024658,2]
[426020041,1782119444000,-500.0,0.00024658,2]
[426020074,1782119444000,-151.0,0.00025017,2]
[426020046,1782119444000,-200.0,0.00024692,2]
[426020045,1782119444000,-494.58565803,0.00024658,2]
[426020039,1782119444000,-500.0,0.00024658,2]
[426020043,1782119444000,-500.0,0.00024658,2]
[426020038,1782119444000,-500.0,0.00024658,2]
[426020037,1782119444000,-500.0,0.00024658,2]
[426020032,1782119444000,-799.88,0.00024658,2]
[426020034,1782119444000,-500.0,0.00024658,2]
[426020048,1782119444000,-6082.0,0.00024903,2]
[426020109,1782119445000,-200.00339904,0.00025449,2]
[426020114,1782119445000,-736.3077941,0.00025452,2]
[426020118,1782119445000,-155.81533129,0.0002546,2]
[426020112,1782119445000,-190.82373722,0.00025449,2]
[426020117,1782119445000,-2014.4555713,0.00025452,2]
[426020101,1782119445000,-180.71206471,0.00025449,2]
[426020110,1782119445000,-176.63346216,0.00025449,2]
[426020111,1782119445000,-180.65412192,0.00025449,2]
[426020106,1782119445000,-165.42254321,0.00025449,2]
[426020105,1782119445000,-172.23759403,0.00025449,2]
[426020108,1782119445000,-185.58526239,0.00025449,2]
[426020116,1782119445000,-173865.1906363,0.00025452,2]
[426020122,1782119445000,-201.41878876,0.0002546,2]
[426020115,1782119445000,-18740.6276669,0.00025452,2]
[426020113,1782119445000,-3130.8190206,0.00025452,2]
[426020121,1782119445000,-221.76415114,0.0002546,2]
[426020134,1782119445000,-383.0,0.00025468,2]
[426020136,1782119445000,-1360.0,0.00025468,2]
[426020120,1782119445000,-167.66321681,0.0002546,2]
[426020132,1782119445000,-150.0,0.00025468,2]
[426020138,1782119445000,-1229.0,0.00025468,2]
[426020124,1782119445000,-204.92301868,0.0002546,2]
[426020128,1782119445000,-186.88637139,0.0002546,2]
[426020123,1782119445000,-206.88371491,0.0002546,2]
[426020103,1782119445000,-214.65791568,0.00025449,2]
[426020119,1782119445000,-183.37435845,0.0002546,2]
[426020098,1782119445000,-152.8910879,0.00025449,2]
[426020088,1782119445000,-166.74303393,0.00025449,2]
[426020099,1782119445000,-151.4684631,0.00025449,2]
[426020126,1782119445000,-192.19149213,0.0002546,2]
[426020076,1782119445000,-270.0455652,0.00025017,2]
[426020078,1782119445000,-200.0,0.00025167,2]
[426020083,1782119445000,-1506.42,0.00025338,2]
[426020082,1782119445000,-500.0,0.00025338,2]
[426020084,1782119445000,-207.10175843,0.00025397,2]
[426020080,1782119445000,-2000.0,0.000252,2]
[426020077,1782119445000,-170.92971999,0.00025069,2]
[426020079,1782119445000,-394.0,0.00025169,2]
[426020081,1782119445000,-500.0,0.00025338,2]
[426020087,1782119445000,-209.78408461,0.00025449,2]
[426020086,1782119445000,-206.14495238,0.00025449,2]
[426020092,1782119445000,-187.05856383,0.00025449,2]
[426020091,1782119445000,-154.96547322,0.00025449,2]
[426020095,1782119445000,-199.46356476,0.00025449,2]
[426020089,1782119445000,-160.14824011,0.00025449,2]
[426020090,1782119445000,-165.23609671,0.00025449,2]
[426020085,1782119445000,-169.47785957,0.00025449,2]
[426020093,1782119445000,-209.14680243,0.00025449,2]
[426020094,1782119445000,-173.57559987,0.00025449,2]
[426020097,1782119445000,-202.88675833,0.00025449,2]
[426020107,1782119445000,-197.19798621,0.00025449,2]
[426020102,1782119445000,-198.66587687,0.00025449,2]
[426020104,1782119445000,-164.20959463,0.00025449,2]
[426020100,1782119445000,-195.69954738,0.00025449,2]
[426020096,1782119445000,-198.28210476,0.00025449,2]
[426020130,1782119445000,-189.94704815,0.00025461,2]
[426020139,1782119445000,-322.37792121,0.00025565,2]
[426020192,1782119445000,-322.37792121,0.00026113,2]
[426020164,1782119445000,-500.0,0.00026027,120]
[426020166,1782119445000,-500.0,0.00026027,120]
[426020174,1782119445000,-500.0,0.00026027,120]
[426020172,1782119445000,-500.0,0.00026027,120]
[426020176,1782119445000,-500.0,0.00026027,120]
[426020186,1782119445000,-500.0,0.00026027,120]
[426020178,1782119445000,-500.0,0.00026027,120]
[426020177,1782119445000,-500.0,0.00026027,120]
[426020179,1782119445000,-500.0,0.00026027,120]
[426020175,1782119445000,-500.0,0.00026027,120]
[426020181,1782119445000,-500.0,0.00026027,120]
[426020180,1782119445000,-500.0,0.00026027,120]
[426020171,1782119445000,-500.0,0.00026027,120]
[426020182,1782119445000,-500.0,0.00026027,120]
[426020185,1782119445000,-500.0,0.00026027,120]
[426020187,1782119445000,-503.00502396,0.00026027,120]
[426020188,1782119445000,-609.93577847,0.00026027,2]
[426020189,1782119445000,-150.0,0.00026093,2]
[426020191,1782119445000,-747.80937859,0.00026111,2]
[426020190,1782119445000,-621.78829552,0.00026111,2]
[426020193,1782119445000,-251.11897888,0.00026113,2]
[426020195,1782119445000,-151.0,0.00026113,2]
[426020194,1782119445000,-292.09502455,0.00026113,2]
[426020197,1782119445000,-745.05719979,0.00026113,2]
[426020196,1782119445000,-262.05850011,0.00026113,2]
[426020141,1782119445000,-200.0,0.00025565,2]
[426020184,1782119445000,-500.0,0.00026027,120]
[426020165,1782119445000,-500.0,0.00026027,120]
[426020183,1782119445000,-500.0,0.00026027,120]
[426020163,1782119445000,-449.44997712,0.00026027,7]
[426020168,1782119445000,-500.0,0.00026027,120]
[426020140,1782119445000,-242.15909246,0.00025565,2]
[426020142,1782119445000,-151.0,0.00025565,2]
[426020150,1782119445000,-612.79847226,0.0002599,2]
[426020149,1782119445000,-200.0,0.00025924,2]
[426020145,1782119445000,-820.21,0.00025786,2]
[426020146,1782119445000,-1719.34,0.00025786,2]
[426020144,1782119445000,-745.05719979,0.00025565,2]
[426020147,1782119445000,-28490.04,0.00025786,2]
[426020148,1782119445000,-2696.35,0.00025786,2]
[426020160,1782119445000,-202.349935,0.00026011,2]
[426020162,1782119445000,-537.16622831,0.00026027,7]
[426020161,1782119445000,-202.0,0.00026011,2]
[426020143,1782119445000,-280.03725111,0.00025565,2]
[426020151,1782119445000,-500.0,0.00025991,2]
[426020152,1782119445000,-500.0,0.00025991,2]
[426020173,1782119445000,-500.0,0.00026027,120]
[426020170,1782119445000,-500.0,0.00026027,120]
[426020169,1782119445000,-500.0,0.00026027,120]
[426020158,1782119445000,-220.71389488,0.00026,2]
[426020157,1782119445000,-4612.44726536,0.00026,2]
[426020167,1782119445000,-500.0,0.00026027,120]
[426020155,1782119445000,-550.0,0.00026,2]
[426020156,1782119445000,-1135.37316374,0.00026,2]
[426020153,1782119445000,-1506.42,0.00025991,2]
[426020154,1782119445000,-6999.99999998,0.00026,5]
[426020159,1782119445000,-9102.70088053,0.00026,5]
[426020235,1782119446000,-166.842779,0.000265,2]
[426020238,1782119446000,-166.842779,0.000265,2]
[426020241,1782119446000,-165.205048,0.000265,2]
[426020230,1782119446000,-50000.0,0.000265,7]
[426020242,1782119446000,-165.205048,0.000265,2]
[426020232,1782119446000,-50000.0,0.000265,7]
[426020228,1782119446000,-50000.0,0.000265,7]
[426020227,1782119446000,-50000.0,0.000265,5]
[426020229,1782119446000,-50000.0,0.000265,5]
[426020243,1782119446000,-165.205048,0.000265,2]
[426020233,1782119446000,-8490.91,0.000265,5]
[426020239,1782119446000,-158.843375,0.000265,2]
[426020257,1782119446000,-166.842779,0.00026604,2]
[426020236,1782119446000,-166.842779,0.000265,2]
[426020240,1782119446000,-151.0,0.000265,2]
[426020244,1782119446000,-165.205048,0.000265,2]
[426020246,1782119446000,-151.0,0.000265,2]
[426020245,1782119446000,-158.29196,0.000265,2]
[426020256,1782119446000,-151.0,0.00026604,2]
[426020247,1782119446000,-151.0,0.000265,2]
[426020248,1782119446000,-151.0,0.000265,2]
[426020252,1782119446000,-28340.867542,0.00026604,2]
[426020255,1782119446000,-112821.9563243,0.00026604,2]
[426020254,1782119446000,-839565.3411824,0.00026604,2]
[426020231,1782119446000,-50000.0,0.000265,5]
[426020234,1782119446000,-166.842779,0.000265,2]
[426020225,1782119446000,-50000.0,0.000265,5]
[426020250,1782119446000,-300.0,0.00026603,10]
[426020224,1782119446000,-50000.0,0.000265,7]
[426020199,1782119446000,-10000.0,0.00026287,2]
[426020209,1782119446000,-486.405922,0.00026408,2]
[426020200,1782119446000,-332.0,0.00026296,2]
[426020198,1782119446000,-2000.0,0.00026287,2]
[426020210,1782119446000,-455.611125,0.0002641,2]
[426020201,1782119446000,-166.842779,0.00026384,2]
[426020205,1782119446000,-207.10175843,0.00026397,2]
[426020202,1782119446000,-166.842779,0.00026384,2]
[426020204,1782119446000,-166.842779,0.00026384,2]
[426020206,1782119446000,-190.74093959,0.00026397,2]
[426020203,1782119446000,-166.842779,0.00026384,2]
[426020207,1782119446000,-190.74093959,0.00026397,2]
[426020226,1782119446000,-50000.0,0.000265,7]
[426020208,1782119446000,-28040.80563702,0.000264,2]
[426020212,1782119446000,-350.0,0.00026458,2]
[426020215,1782119446000,-300.0,0.00026499,10]
[426020217,1782119446000,-500.0,0.00026499,2]
[426020219,1782119446000,-500.0,0.00026499,2]
[426020220,1782119446000,-1506.42,0.00026499,2]
[426020216,1782119446000,-500.0,0.00026499,2]
[426020214,1782119446000,-155.04901956,0.00026497,7]
[426020218,1782119446000,-500.0,0.00026499,2]
[426020213,1782119446000,-176.0,0.00026486,5]
[426020221,1782119446000,-1506.42,0.00026499,2]
[426020223,1782119446000,-50000.0,0.000265,5]
[426020222,1782119446000,-50000.0,0.000265,7]
[426020211,1782119446000,-493.419401,0.00026417,2]
[426020253,1782119446000,-11793.4557878,0.00026604,2]
[426020278,1782119446000,-174.58926698,0.00026723,2]
[426020264,1782119446000,-165.205048,0.00026604,2]
[426020290,1782119446000,-398.92712952,0.00026723,2]
[426020286,1782119446000,-374.11712766,0.00026723,2]
[426020291,1782119446000,-156.21203103,0.00026723,2]
[426020294,1782119446000,-228.42854703,0.00026723,2]
[426020293,1782119446000,-177.01568833,0.00026723,2]
[426020303,1782119446000,-176.15833958,0.00026723,2]
[426020304,1782119446000,-397.33175374,0.00026723,2]
[426020297,1782119446000,-177.36788262,0.00026723,2]
[426020296,1782119446000,-405.77351666,0.00026723,2]
[426020300,1782119446000,-383.48249865,0.00026723,2]
[426020295,1782119446000,-396.56420951,0.00026723,2]
[426020298,1782119446000,-305.78217581,0.00026723,2]
[426020299,1782119446000,-302.93692619,0.00026723,2]
[426020301,1782119446000,-391.39909475,0.00026723,2]
[426020302,1782119446000,-361.42412942,0.00026723,2]
[426020305,1782119446000,-429.31583137,0.00026723,2]
[426020306,1782119446000,-156.02272529,0.00026723,2]
[426020308,1782119446000,-176.11388065,0.00026723,2]
[426020311,1782119446000,-344.47518807,0.00026723,2]
[426020312,1782119446000,-176.26779981,0.00026723,2]
[426020309,1782119446000,-191.1992813,0.00026723,2]
[426020307,1782119446000,-328.41918926,0.00026723,2]
[426020310,1782119446000,-222.64968079,0.00026723,2]
[426020313,1782119446000,-330.84508642,0.00026723,2]
[426020262,1782119446000,-165.205048,0.00026604,2]
[426020287,1782119446000,-418.29360485,0.00026723,2]
[426020285,1782119446000,-309.93094644,0.00026723,2]
[426020315,1782119446000,-394.39597243,0.00026723,2]
[426020289,1782119446000,-347.15119974,0.00026723,2]
[426020258,1782119446000,-166.842779,0.00026604,2]
[426020292,1782119446000,-491.6560832,0.00026723,2]
[426020261,1782119446000,-151.0,0.00026604,2]
[426020265,1782119446000,-165.205048,0.00026604,2]
[426020266,1782119446000,-231.76626181,0.00026604,2]
[426020259,1782119446000,-166.842779,0.00026604,2]
[426020268,1782119446000,-151.0,0.00026604,2]
[426020267,1782119446000,-169.261806,0.00026604,2]
[426020270,1782119446000,-712.055,0.00026636,14]
[426020263,1782119446000,-165.205048,0.00026604,2]
[426020269,1782119446000,-151.0,0.00026604,2]
[426020272,1782119446000,-260.4103811,0.00026661,2]
[426020271,1782119446000,-322.37792122,0.00026661,2]
[426020260,1782119446000,-166.842779,0.00026604,2]
[426020274,1782119446000,-745.05719996,0.00026661,2]
[426020275,1782119446000,-508.85161862,0.00026667,7]
[426020276,1782119446000,-329.8884998,0.0002667,5]
[426020280,1782119446000,-412.28990475,0.00026723,2]
[426020281,1782119446000,-419.56816921,0.00026723,2]
[426020314,1782119446000,-170.42552811,0.00026723,2]
[426020277,1782119446000,-200.0,0.00026681,2]
[426020279,1782119446000,-338.95571914,0.00026723,2]
[426020282,1782119446000,-333.48606786,0.00026723,2]
[426020283,1782119446000,-320.29648023,0.00026723,2]
[426020288,1782119446000,-243.72688208,0.00026723,2]
[426020284,1782119446000,-330.47219341,0.00026723,2]
[426020273,1782119446000,-151.0,0.00026661,2]
[426020352,1782119447000,-493.419401,0.00026858,2]
[426020348,1782119447000,-199.09,0.00026849,8]
[426020353,1782119447000,-350.0,0.00026869,3]
[426020344,1782119447000,-1032.61499181,0.00026849,5]
[426020350,1782119447000,-250.0,0.00026849,8]
[426020347,1782119447000,-250.02,0.00026849,8]
[426020343,1782119447000,-1132.82683907,0.00026849,5]
[426020346,1782119447000,-1213.98858735,0.00026849,5]
[426020349,1782119447000,-250.0,0.00026849,8]
[426020351,1782119447000,-250.0,0.00026849,8]
[426020362,1782119447000,-301.747,0.00027081,2]
[426020354,1782119447000,-2009.0,0.000269,2]
[426020357,1782119447000,-250.0,0.00027,2]
[426020364,1782119447000,-300.0,0.00027096,7]
[426020359,1782119447000,-1056.37288543,0.00027,2]
[426020367,1782119447000,-500.0,0.00027205,2]
[426020356,1782119447000,-1445.95,0.00026914,2]
[426020365,1782119447000,-387.0,0.00027102,2]
[426020360,1782119447000,-530.0,0.00027,2]
[426020366,1782119447000,-563.0,0.00027188,2]
[426020361,1782119447000,-653.57150844,0.00027067,2]
[426020345,1782119447000,-1051.92688383,0.00026849,5]
[426020358,1782119447000,-17103.7567895,0.00027,2]
[426020355,1782119447000,-292.76329703,0.00026909,2]
[426020342,1782119447000,-1099.18659611,0.00026849,5]
[426020329,1782119447000,-373.77274279,0.00026734,2]
[426020341,1782119447000,-1113.33697298,0.00026849,5]
[426020363,1782119447000,-1784.25,0.00027096,2]
[426020328,1782119447000,-384.38298425,0.00026734,2]
[426020317,1782119447000,-400.00679807,0.00026723,2]
[426020316,1782119447000,-371.17052479,0.00026723,2]
[426020327,1782119447000,-409.84603736,0.00026734,2]
[426020318,1782119447000,-353.26692432,0.00026723,2]
[426020319,1782119447000,-361.30824383,0.00026723,2]
[426020320,1782119447000,-381.64747444,0.00026723,2]
[426020324,1782119447000,-335.32643363,0.00026734,2]
[426020325,1782119447000,-443.52830228,0.00026734,2]
[426020321,1782119447000,-162.73658281,0.00026734,2]
[426020340,1782119447000,-1974.17159041,0.00026841,2]
[426020322,1782119447000,-162.73658281,0.00026734,2]
[426020323,1782119447000,-311.63066257,0.00026734,2]
[426020331,1782119447000,-379.89409629,0.00026734,2]
[426020333,1782119447000,-350.0,0.00026738,2]
[426020332,1782119447000,-180.43598445,0.00026734,2]
[426020330,1782119447000,-402.83757751,0.00026734,2]
[426020334,1782119447000,-500.0,0.0002674,2]
[426020337,1782119447000,-333.41680622,0.0002675,120]
[426020339,1782119447000,-151.13885781,0.00026829,2]
[426020338,1782119447000,-577.19,0.000268,7]
[426020335,1782119447000,-500.0,0.0002674,2]
[426020336,1782119447000,-1506.42,0.0002674,2]
[426020326,1782119447000,-413.76742982,0.00026734,2]
[426020373,1782119447000,-500.0,0.00027205,2]
[426020383,1782119447000,-593.0,0.00027205,2]
[426020374,1782119447000,-500.0,0.00027205,2]
[426020391,1782119447000,-200.0,0.00027205,2]
[426020399,1782119447000,-200.0,0.00027205,2]
[426020402,1782119447000,-200.0,0.00027205,2]
[426020404,1782119447000,-200.0,0.00027205,2]
[426020403,1782119447000,-200.0,0.00027205,2]
[426020405,1782119447000,-200.0,0.00027205,2]
[426020407,1782119447000,-200.0,0.00027205,2]
[426020368,1782119447000,-500.0,0.00027205,2]
[426020406,1782119447000,-200.0,0.00027205,2]
[426020409,1782119447000,-200.0,0.00027205,2]
[426020410,1782119447000,-200.0,0.00027205,2]
[426020401,1782119447000,-200.0,0.00027205,2]
[426020412,1782119447000,-200.0,0.00027205,2]
[426020413,1782119447000,-200.0,0.00027205,2]
[426020414,1782119447000,-200.0,0.00027205,2]
[426020416,1782119447000,-200.0,0.00027205,2]
[426020417,1782119447000,-200.0,0.00027205,2]
[426020420,1782119447000,-200.0,0.00027205,2]
[426020418,1782119447000,-200.0,0.00027205,2]
[426020421,1782119447000,-182.0,0.00027205,2]
[426020415,1782119447000,-200.0,0.00027205,2]
[426020422,1782119447000,-270.0455652,0.00027209,2]
[426020419,1782119447000,-200.0,0.00027205,2]
[426020423,1782119447000,-563.0,0.00027222,2]
[426020411,1782119447000,-200.0,0.00027205,2]
[426020398,1782119447000,-200.0,0.00027205,2]
[426020408,1782119447000,-200.0,0.00027205,2]
[426020396,1782119447000,-200.0,0.00027205,2]
[426020371,1782119447000,-500.0,0.00027205,2]
[426020370,1782119447000,-500.0,0.00027205,2]
[426020393,1782119447000,-200.0,0.00027205,2]
[426020369,1782119447000,-500.0,0.00027205,2]
[426020378,1782119447000,-500.0,0.00027205,2]
[426020377,1782119447000,-500.0,0.00027205,2]
[426020375,1782119447000,-500.0,0.00027205,2]
[426020376,1782119447000,-500.0,0.00027205,2]
[426020380,1782119447000,-500.0,0.00027205,2]
[426020379,1782119447000,-500.0,0.00027205,2]
[426020382,1782119447000,-500.0,0.00027205,2]
[426020385,1782119447000,-200.0,0.00027205,2]
[426020372,1782119447000,-500.0,0.00027205,2]
[426020381,1782119447000,-500.0,0.00027205,2]
[426020386,1782119447000,-200.0,0.00027205,2]
[426020397,1782119447000,-200.0,0.00027205,2]
[426020395,1782119447000,-200.0,0.00027205,2]
[426020394,1782119447000,-200.0,0.00027205,2]
[426020392,1782119447000,-200.0,0.00027205,2]
[426020400,1782119447000,-200.0,0.00027205,2]
[426020388,1782119447000,-200.0,0.00027205,2]
[426020389,1782119447000,-200.0,0.00027205,2]
[426020384,1782119447000,-200.0,0.00027205,2]
[426020387,1782119447000,-200.0,0.00027205,2]
[426020390,1782119447000,-200.0,0.00027205,2]
[426020431,1782119448000,-1488.01809096,0.00027319,2]
[426020443,1782119448000,-500.0,0.00027359,2]
[426020445,1782119448000,-500.0,0.00027359,2]
[426020448,1782119448000,-1506.42,0.00027359,2]